[Event "Titled Tuesday Blitz July 26 Early 2022"]
[White "Ramirez Vido, Robert Yorisan"]
[Black "Mitrovic, Darko R"]
[WhiteFideId "3513823"]
[BlackFideId "927023"]
[WhiteElo "2416"]
[BlackElo "2150"]
[Result "1-0"]
[Round "07"]
[TimeControl "180+1"]
[Date "2022.07.27"]
[WhiteClock "0:00:08"]
[BlackClock "0:00:01"]

1. Nf3 {[%clk 0:03:00]}  Nf6 {[%clk 0:02:58]} 2. g3 {[%clk 0:03:00]}  b6 {[%clk 0:02:53]} 3. Bg2 {[%clk 0:03:00]}  Bb7 {[%clk 0:02:52]} 4. O-O {[%clk 0:03:01]}  c5 {[%clk 0:02:51]} 5. d3 {[%clk 0:03:01]}  e6 {[%clk 0:02:46]} 6. e4 {[%clk 0:03:01]}  d5 {[%clk 0:02:40]} 7. Nbd2 {[%clk 0:03:01]}  Be7 {[%clk 0:02:39]} 8. Re1 {[%clk 0:03:01]}  O-O {[%clk 0:02:39]} 9. e5 {[%clk 0:03:00]}  Nfd7 {[%clk 0:02:38]} 10. h4 {[%clk 0:03:01]}  Nc6 {[%clk 0:02:36]} 11. h5 {[%clk 0:03:01]}  a5 {[%clk 0:02:33]} 12. a4 {[%clk 0:03:00]}  Rc8 {[%clk 0:02:30]} 13. h6 {[%clk 0:02:59]}  g6 {[%clk 0:02:28]} 14. Nf1 {[%clk 0:02:59]}  Qc7 {[%clk 0:02:10]} 15. Bf4 {[%clk 0:02:56]}  Nd4 {[%clk 0:02:09]} 16. Nxd4 {[%clk 0:02:30]}  cxd4 {[%clk 0:02:09]} 17. Re2 {[%clk 0:02:28]}  Bc6 {[%clk 0:02:01]} 18. Nh2 {[%clk 0:02:25]}  Qb7 {[%clk 0:01:52]} 19. Qd2 {[%clk 0:02:20]}  b5 {[%clk 0:01:37]} 20. axb5 {[%clk 0:02:17]}  Qxb5 {[%clk 0:01:36]} 21. Bg5 {[%clk 0:01:57]}  Qxb2 {[%clk 0:01:13]} 22. Bxe7 {[%clk 0:01:38]}  Qxa1+ {[%clk 0:01:12]} 23. Bf1 {[%clk 0:01:31]}  a4 {[%clk 0:01:06]} 24. Qg5 {[%clk 0:01:21]}  a3 {[%clk 0:00:59]} 25. Ng4 {[%clk 0:01:21]}  f5 {[%clk 0:00:52]} 26. exf6 {[%clk 0:01:13]}  a2 {[%clk 0:00:48]} 27. Bxf8 {[%clk 0:01:00]}  Rxf8 {[%clk 0:00:45]} 28. Rxe6 {[%clk 0:00:54]}  Qd1 {[%clk 0:00:38]} 29. f7+ {[%clk 0:00:46]}  Rxf7 {[%clk 0:00:32]} 30. Re8+ {[%clk 0:00:21]}  Nf8 {[%clk 0:00:30]} 31. Nf6+ {[%clk 0:00:20]}  Kh8 {[%clk 0:00:19]} 32. Qe5 {[%clk 0:00:17]}  Bxe8 {[%clk 0:00:14]} 33. Nxe8+ {[%clk 0:00:09]}  Kg8 {[%clk 0:00:13]} 34. Nf6+ {[%clk 0:00:07]}  Rxf6 {[%clk 0:00:12]} 35. Qxf6 {[%clk 0:00:07]}  Qxf1+ {[%clk 0:00:12]} 36. Kxf1 {[%clk 0:00:07]}  a1=Q+ {[%clk 0:00:12]} 37. Kg2 {[%clk 0:00:08]}  Qa7 {[%clk 0:00:12]} 38. Qe5 {[%clk 0:00:06]}  Qf7 {[%clk 0:00:11]} 39. Qxd4 {[%clk 0:00:05]}  Ne6 {[%clk 0:00:10]} 40. Qe5 {[%clk 0:00:04]}  g5 {[%clk 0:00:07]} 41. c4 {[%clk 0:00:03]}  dxc4 {[%clk 0:00:07]} 42. dxc4 {[%clk 0:00:04]}  Qb7+ {[%clk 0:00:05]} 43. Kh2 {[%clk 0:00:03]}  Kf7 {[%clk 0:00:05]} 44. Qf5+ {[%clk 0:00:03]}  Kg8 {[%clk 0:00:03]} 45. Qxe6+ {[%clk 0:00:03]}  Qf7 {[%clk 0:00:03]} 46. Qxf7+ {[%clk 0:00:03]}  Kxf7 {[%clk 0:00:02]} 47. f4 {[%clk 0:00:03]}  Ke6 {[%clk 0:00:02]} 48. fxg5 {[%clk 0:00:03]}  Kf5 {[%clk 0:00:03]} 49. c5 {[%clk 0:00:03]}  Kxg5 {[%clk 0:00:03]} 50. c6 {[%clk 0:00:03]}  Kxh6 {[%clk 0:00:04]} 51. c7 {[%clk 0:00:04]}  Kg5 {[%clk 0:00:04]} 52. c8=Q {[%clk 0:00:05]}  Kh5 {[%clk 0:00:04]} 53. Qf5+ {[%clk 0:00:05]}  Kh6 {[%clk 0:00:04]} 54. Qf6+ {[%clk 0:00:05]}  Kh5 {[%clk 0:00:03]} 55. Qg7 {[%clk 0:00:05]}  h6 {[%clk 0:00:02]} 56. g4+ {[%clk 0:00:05]}  Kh4 {[%clk 0:00:02]} 57. Qxh6+ {[%clk 0:00:05]}  Kxg4 {[%clk 0:00:02]} 58. Qc1 {[%clk 0:00:05]}  Kf3 {[%clk 0:00:02]} 59. Qd2 {[%clk 0:00:04]}  Kg4 {[%clk 0:00:02]} 60. Qe3 {[%clk 0:00:05]}  Kh4 {[%clk 0:00:02]} 61. Qg3+ {[%clk 0:00:05]}  Kh5 {[%clk 0:00:02]} 62. Kg2 {[%clk 0:00:05]}  Kh6 {[%clk 0:00:02]} 63. Kf3 {[%clk 0:00:06]}  Kh5 {[%clk 0:00:01]} 64. Kf4 {[%clk 0:00:06]}  Kh6 {[%clk 0:00:01]} 65. Qg8 {[%clk 0:00:07]}  Kh5 {[%clk 0:00:01]} 66. Qg5# {[%clk 0:00:08]} 1-0


[Site "https://www.chess.com"]

[Event "Titled Tuesday Blitz July 26 Early 2022"]
[White "Rohith Krishna S"]
[Black "Odegov, Artem"]
[WhiteFideId "46617051"]
[BlackFideId "34183644"]
[WhiteElo "2117"]
[BlackElo "2286"]
[Result "1-0"]
[Round "07"]
[TimeControl "180+1"]
[Date "2022.07.26"]
[WhiteClock "0:01:48"]
[BlackClock "0:00:02"]

1. e4 {[%clk 0:03:00]}  e6 {[%clk 0:03:00]} 2. Nc3 {[%clk 0:02:58]}  d5 {[%clk 0:03:00]} 3. Nf3 {[%clk 0:02:58]}  c5 {[%clk 0:03:00]} 4. exd5 {[%clk 0:02:57]}  exd5 {[%clk 0:03:01]} 5. d4 {[%clk 0:02:58]}  cxd4 {[%clk 0:02:54]} 6. Nxd4 {[%clk 0:02:56]}  Nc6 {[%clk 0:02:54]} 7. Be3 {[%clk 0:02:48]}  Nf6 {[%clk 0:02:54]} 8. Bb5 {[%clk 0:02:48]}  Bd7 {[%clk 0:02:54]} 9. O-O {[%clk 0:02:44]}  Be7 {[%clk 0:02:53]} 10. Bg5 {[%clk 0:02:40]}  O-O {[%clk 0:02:49]} 11. Re1 {[%clk 0:02:41]}  h6 {[%clk 0:02:40]} 12. Bh4 {[%clk 0:02:35]}  Nxd4 {[%clk 0:02:22]} 13. Qxd4 {[%clk 0:02:30]}  Be6 {[%clk 0:02:18]} 14. Rad1 {[%clk 0:02:20]}  Rc8 {[%clk 0:02:17]} 15. Qxa7 {[%clk 0:02:14]}  Bc5 {[%clk 0:01:34]} 16. Qa4 {[%clk 0:02:11]}  g5 {[%clk 0:01:26]} 17. Bg3 {[%clk 0:02:10]}  d4 {[%clk 0:01:24]} 18. Bf1 {[%clk 0:02:04]}  Ra8 {[%clk 0:00:39]} 19. Qb5 {[%clk 0:02:01]}  Ra5 {[%clk 0:00:39]} 20. Qxb7 {[%clk 0:02:01]}  Bc8 {[%clk 0:00:38]} 21. Qb8 {[%clk 0:01:54]}  Nd7 {[%clk 0:00:27]} 22. Qc7 {[%clk 0:01:49]}  dxc3 {[%clk 0:00:11]} 23. Qxd8 {[%clk 0:01:48]}  Rxd8 {[%clk 0:00:09]} 24. Bc7 {[%clk 0:01:49]}  Bb6 {[%clk 0:00:04]} 25. Bxb6 {[%clk 0:01:48]}  Nxb6 {[%clk 0:00:04]} 26. Rxd8+ {[%clk 0:01:48]}  Kg7 {[%clk 0:00:05]} 27. bxc3 {[%clk 0:01:48]}  Rxa2 {[%clk 0:00:06]} 28. Rb1 {[%clk 0:01:48]}  Ra1 {[%clk 0:00:02]} 29. Rxa1 {[%clk 0:01:48]} 1-0


[Site "https://www.chess.com"]

[Event "Titled Tuesday Blitz July 26 Early 2022"]
[White "Rustemov, Alexander"]
[Black "Ismagilov, Damir"]
[WhiteFideId "4119002"]
[BlackFideId "34199982"]
[WhiteElo "2801"]
[BlackElo "2138"]
[Result "1-0"]
[Round "07"]
[TimeControl "180+1"]
[Date "2022.07.26"]
[WhiteClock "0:00:36"]
[BlackClock "0:00:02"]

1. d4 {[%clk 0:03:00]}  Nf6 {[%clk 0:02:58]} 2. c4 {[%clk 0:03:01]}  e6 {[%clk 0:02:58]} 3. Nf3 {[%clk 0:03:01]}  d5 {[%clk 0:02:58]} 4. Nc3 {[%clk 0:03:02]}  Bb4 {[%clk 0:02:58]} 5. Bg5 {[%clk 0:03:02]}  h6 {[%clk 0:02:57]} 6. Bxf6 {[%clk 0:03:01]}  Qxf6 {[%clk 0:02:56]} 7. e3 {[%clk 0:03:01]}  O-O {[%clk 0:02:56]} 8. Rc1 {[%clk 0:03:00]}  dxc4 {[%clk 0:02:55]} 9. Bxc4 {[%clk 0:02:59]}  c5 {[%clk 0:02:55]} 10. O-O {[%clk 0:02:59]}  cxd4 {[%clk 0:02:55]} 11. Ne4 {[%clk 0:02:59]}  Qe7 {[%clk 0:02:49]} 12. a3 {[%clk 0:02:56]}  Ba5 {[%clk 0:02:48]} 13. Qxd4 {[%clk 0:02:56]}  Bb6 {[%clk 0:02:42]} 14. Qe5 {[%clk 0:02:47]}  Nc6 {[%clk 0:02:41]} 15. Qh5 {[%clk 0:02:44]}  Bd7 {[%clk 0:02:17]} 16. g4 {[%clk 0:02:41]}  Be8 {[%clk 0:01:53]} 17. Qh3 {[%clk 0:02:15]}  f6 {[%clk 0:01:46]} 18. Rfd1 {[%clk 0:01:55]}  Rd8 {[%clk 0:01:33]} 19. Qg2 {[%clk 0:01:35]}  Bg6 {[%clk 0:01:28]} 20. Ng3 {[%clk 0:01:28]}  Bf7 {[%clk 0:01:24]} 21. h4 {[%clk 0:01:27]}  Rxd1+ {[%clk 0:01:23]} 22. Rxd1 {[%clk 0:01:26]}  Rd8 {[%clk 0:01:24]} 23. Rc1 {[%clk 0:01:23]}  Bc7 {[%clk 0:01:21]} 24. g5 {[%clk 0:01:23]}  hxg5 {[%clk 0:01:17]} 25. hxg5 {[%clk 0:01:24]}  Ne5 {[%clk 0:01:07]} 26. Nxe5 {[%clk 0:01:19]}  Bxe5 {[%clk 0:01:08]} 27. f4 {[%clk 0:01:19]}  Bc7 {[%clk 0:01:01]} 28. Ne4 {[%clk 0:01:02]}  f5 {[%clk 0:00:41]} 29. Nf6+ {[%clk 0:00:59]}  Kf8 {[%clk 0:00:40]} 30. Nh7+ {[%clk 0:00:59]}  Kg8 {[%clk 0:00:39]} 31. g6 {[%clk 0:00:59]}  Be8 {[%clk 0:00:38]} 32. Ng5 {[%clk 0:00:57]}  Rd6 {[%clk 0:00:32]} 33. Qxb7 {[%clk 0:00:55]}  Bc6 {[%clk 0:00:16]} 34. Qc8+ {[%clk 0:00:51]}  Be8 {[%clk 0:00:10]} 35. Bxe6+ {[%clk 0:00:50]}  Kh8 {[%clk 0:00:09]} 36. Rxc7 {[%clk 0:00:44]}  Rd1+ {[%clk 0:00:09]} 37. Kh2 {[%clk 0:00:41]}  Rd2+ {[%clk 0:00:09]} 38. Kg3 {[%clk 0:00:41]}  Qd8 {[%clk 0:00:05]} 39. Qxd8 {[%clk 0:00:38]}  Rxd8 {[%clk 0:00:06]} 40. Nf7+ {[%clk 0:00:39]}  Kg8 {[%clk 0:00:05]} 41. Nxd8+ {[%clk 0:00:38]}  Kh8 {[%clk 0:00:03]} 42. Rc8 {[%clk 0:00:37]}  a5 {[%clk 0:00:02]} 43. Nf7+ {[%clk 0:00:37]}  Kg8 {[%clk 0:00:02]} 44. Rxe8# {[%clk 0:00:36]} 1-0


[Site "https://www.chess.com"]

[Event "Titled Tuesday Blitz July 26 Early 2022"]
[White "Shuvalov, Evgenij"]
[Black "Agasarov, Benik"]
[WhiteFideId "4187237"]
[BlackFideId "13314823"]
[WhiteElo "2042"]
[BlackElo "2701"]
[Result "1-0"]
[Round "07"]
[TimeControl "180+1"]
[Date "2022.07.27"]
[WhiteClock "0:00:06"]
[BlackClock "0:00:10"]

1. Nf3 {[%clk 0:02:53]}  d5 {[%clk 0:02:57]} 2. c4 {[%clk 0:02:53]}  d4 {[%clk 0:02:56]} 3. b4 {[%clk 0:02:53]}  c5 {[%clk 0:02:53]} 4. e3 {[%clk 0:02:49]}  dxe3 {[%clk 0:02:52]} 5. fxe3 {[%clk 0:02:50]}  cxb4 {[%clk 0:02:53]} 6. a3 {[%clk 0:02:46]}  bxa3 {[%clk 0:02:52]} 7. Bxa3 {[%clk 0:02:45]}  Nf6 {[%clk 0:02:52]} 8. d4 {[%clk 0:02:44]}  g6 {[%clk 0:02:52]} 9. Bd3 {[%clk 0:02:41]}  Bg7 {[%clk 0:02:52]} 10. O-O {[%clk 0:02:41]}  O-O {[%clk 0:02:53]} 11. Qe1 {[%clk 0:02:34]}  Nbd7 {[%clk 0:02:49]} 12. e4 {[%clk 0:02:24]}  Nh5 {[%clk 0:02:46]} 13. Qe3 {[%clk 0:02:16]}  b6 {[%clk 0:02:40]} 14. e5 {[%clk 0:02:12]}  f5 {[%clk 0:01:50]} 15. Nc3 {[%clk 0:02:08]}  Bb7 {[%clk 0:01:43]} 16. Rad1 {[%clk 0:01:57]}  Re8 {[%clk 0:01:39]} 17. Ne2 {[%clk 0:01:30]}  e6 {[%clk 0:01:38]} 18. Bd6 {[%clk 0:01:28]}  Bf8 {[%clk 0:01:35]} 19. c5 {[%clk 0:01:22]}  Bxd6 {[%clk 0:01:32]} 20. exd6 {[%clk 0:01:17]}  bxc5 {[%clk 0:01:30]} 21. dxc5 {[%clk 0:01:17]}  Nhf6 {[%clk 0:01:29]} 22. Ne5 {[%clk 0:01:12]}  Nxe5 {[%clk 0:01:16]} 23. Qxe5 {[%clk 0:01:13]}  Ng4 {[%clk 0:01:15]} 24. Qg3 {[%clk 0:00:56]}  Qc8 {[%clk 0:01:04]} 25. Rc1 {[%clk 0:00:54]}  Bc6 {[%clk 0:01:01]} 26. h3 {[%clk 0:00:53]}  Nf6 {[%clk 0:01:01]} 27. Qe5 {[%clk 0:00:52]}  Nd7 {[%clk 0:01:01]} 28. Qc3 {[%clk 0:00:46]}  Qd8 {[%clk 0:00:54]} 29. Nd4 {[%clk 0:00:46]}  Rc8 {[%clk 0:00:50]} 30. Ba6 {[%clk 0:00:43]}  Qg5 {[%clk 0:00:48]} 31. Rc2 {[%clk 0:00:34]}  Be4 {[%clk 0:00:43]} 32. Bxc8 {[%clk 0:00:32]}  Rxc8 {[%clk 0:00:42]} 33. Nxe6 {[%clk 0:00:28]}  Qh6 {[%clk 0:00:42]} 34. Re2 {[%clk 0:00:24]}  Bd5 {[%clk 0:00:39]} 35. Nc7 {[%clk 0:00:22]}  Bc6 {[%clk 0:00:37]} 36. Re7 {[%clk 0:00:18]}  Qf8 {[%clk 0:00:35]} 37. Ne6 {[%clk 0:00:17]}  Qf6 {[%clk 0:00:30]} 38. Qxf6 {[%clk 0:00:15]}  Nxf6 {[%clk 0:00:30]} 39. Ra1 {[%clk 0:00:15]}  Nd5 {[%clk 0:00:24]} 40. Rexa7 {[%clk 0:00:14]}  Re8 {[%clk 0:00:21]} 41. Nc7 {[%clk 0:00:12]}  Re2 {[%clk 0:00:16]} 42. R1a2 {[%clk 0:00:09]}  Re1+ {[%clk 0:00:12]} 43. Kf2 {[%clk 0:00:09]}  Rd1 {[%clk 0:00:11]} 44. Nxd5 {[%clk 0:00:08]}  Bxd5 {[%clk 0:00:11]} 45. Rb2 {[%clk 0:00:06]}  Bc6 {[%clk 0:00:10]} 46. Rb8+ {[%clk 0:00:06]} 1-0


[Site "https://www.chess.com"]

[Event "Titled Tuesday Blitz July 26 Early 2022"]
[White "Tatarinov, Dmitry"]
[Black "Makovec, Bruno"]
[WhiteFideId "24160067"]
[BlackFideId "14536331"]
[WhiteElo "2302"]
[BlackElo "2316"]
[Result "1-0"]
[Round "07"]
[TimeControl "180+1"]
[Date "2022.07.26"]
[WhiteClock "0:00:06"]
[BlackClock "0:00:01"]

1. d4 {[%clk 0:02:53]}  Nf6 {[%clk 0:02:54]} 2. c4 {[%clk 0:02:53]}  e6 {[%clk 0:02:54]} 3. Nf3 {[%clk 0:02:52]}  d5 {[%clk 0:02:51]} 4. Nc3 {[%clk 0:02:52]}  dxc4 {[%clk 0:02:49]} 5. e4 {[%clk 0:02:52]}  b5 {[%clk 0:02:49]} 6. e5 {[%clk 0:02:53]}  Nd5 {[%clk 0:02:49]} 7. Nxb5 {[%clk 0:02:53]}  Nb6 {[%clk 0:02:49]} 8. Be2 {[%clk 0:02:50]}  Nc6 {[%clk 0:02:48]} 9. h4 {[%clk 0:02:49]}  Bb7 {[%clk 0:02:44]} 10. h5 {[%clk 0:02:49]}  h6 {[%clk 0:02:44]} 11. Rh4 {[%clk 0:02:45]}  Qd7 {[%clk 0:02:40]} 12. a4 {[%clk 0:02:43]}  Ne7 {[%clk 0:02:28]} 13. Rg4 {[%clk 0:02:37]}  Nf5 {[%clk 0:02:20]} 14. Nc3 {[%clk 0:02:31]}  a5 {[%clk 0:02:13]} 15. Kf1 {[%clk 0:02:28]}  Rd8 {[%clk 0:02:06]} 16. b3 {[%clk 0:02:12]}  Bb4 {[%clk 0:02:02]} 17. Bb2 {[%clk 0:01:59]}  cxb3 {[%clk 0:01:59]} 18. Qxb3 {[%clk 0:01:58]}  O-O {[%clk 0:01:50]} 19. Rd1 {[%clk 0:01:51]}  Nd5 {[%clk 0:01:48]} 20. Ne4 {[%clk 0:01:46]}  Kh8 {[%clk 0:01:36]} 21. Kg1 {[%clk 0:01:46]}  Nb6 {[%clk 0:01:32]} 22. Nc5 {[%clk 0:01:25]}  Qd5 {[%clk 0:01:14]} 23. Qc2 {[%clk 0:01:15]}  Ba8 {[%clk 0:01:06]} 24. Bd3 {[%clk 0:01:09]}  Qc6 {[%clk 0:00:12]} 25. Be4 {[%clk 0:01:01]}  Nd5 {[%clk 0:00:09]} 26. Bxf5 {[%clk 0:00:56]}  exf5 {[%clk 0:00:09]} 27. Qxf5 {[%clk 0:00:56]}  Bxc5 {[%clk 0:00:08]} 28. dxc5 {[%clk 0:00:56]}  Ne7 {[%clk 0:00:05]} 29. Rxd8 {[%clk 0:00:53]}  Nxf5 {[%clk 0:00:06]} 30. Rxf8+ {[%clk 0:00:53]}  Kh7 {[%clk 0:00:06]} 31. Rxf7 {[%clk 0:00:47]}  Qe6 {[%clk 0:00:04]} 32. Rxc7 {[%clk 0:00:41]}  Bxf3 {[%clk 0:00:05]} 33. gxf3 {[%clk 0:00:41]}  Qb3 {[%clk 0:00:02]} 34. Kg2 {[%clk 0:00:09]}  Qxb2 {[%clk 0:00:03]} 35. c6 {[%clk 0:00:09]}  Qxe5 {[%clk 0:00:03]} 36. Rd7 {[%clk 0:00:08]}  Qe6 {[%clk 0:00:01]} 37. Rc7 {[%clk 0:00:06]} 1-0


[Site "https://www.chess.com"]

[Event "Titled Tuesday Blitz July 26 Early 2022"]
[White "Timofeev, Artyom"]
[Black "Hansen, Eric"]
[WhiteFideId "4140419"]
[BlackFideId "2606771"]
[WhiteElo "2578"]
[BlackElo "2568"]
[Result "0-1"]
[Round "07"]
[TimeControl "180+1"]
[Date "2022.07.26"]
[WhiteClock "0:00:27"]
[BlackClock "0:00:09"]

1. e4 {[%clk 0:03:00]}  c5 {[%clk 0:02:50]} 2. Nc3 {[%clk 0:02:59]}  Nc6 {[%clk 0:02:50]} 3. Nf3 {[%clk 0:02:58]}  d6 {[%clk 0:02:49]} 4. d4 {[%clk 0:02:57]}  cxd4 {[%clk 0:02:49]} 5. Nxd4 {[%clk 0:02:57]}  Nf6 {[%clk 0:02:50]} 6. Bg5 {[%clk 0:02:56]}  e6 {[%clk 0:02:50]} 7. Qd2 {[%clk 0:02:56]}  a6 {[%clk 0:02:50]} 8. O-O-O {[%clk 0:02:56]}  Bd7 {[%clk 0:02:50]} 9. f4 {[%clk 0:02:55]}  b5 {[%clk 0:02:42]} 10. Bxf6 {[%clk 0:02:54]}  gxf6 {[%clk 0:02:43]} 11. Kb1 {[%clk 0:02:48]}  Qb6 {[%clk 0:02:42]} 12. Nxc6 {[%clk 0:02:45]}  Bxc6 {[%clk 0:02:41]} 13. Bd3 {[%clk 0:02:39]}  Qc5 {[%clk 0:02:41]} 14. Rhe1 {[%clk 0:02:34]}  O-O-O {[%clk 0:02:35]} 15. f5 {[%clk 0:02:29]}  h5 {[%clk 0:02:28]} 16. fxe6 {[%clk 0:01:59]}  fxe6 {[%clk 0:02:29]} 17. Rf1 {[%clk 0:01:59]}  Bh6 {[%clk 0:01:57]} 18. Qe1 {[%clk 0:01:58]}  Rhf8 {[%clk 0:01:46]} 19. a3 {[%clk 0:01:46]}  Kc7 {[%clk 0:01:35]} 20. Ne2 {[%clk 0:01:45]}  Bd7 {[%clk 0:01:20]} 21. Rf3 {[%clk 0:01:34]}  Kb8 {[%clk 0:01:11]} 22. Qh4 {[%clk 0:01:31]}  Bg5 {[%clk 0:01:01]} 23. Qe1 {[%clk 0:01:22]}  h4 {[%clk 0:01:01]} 24. Qa5 {[%clk 0:01:19]}  Bc8 {[%clk 0:00:59]} 25. c3 {[%clk 0:01:13]}  d5 {[%clk 0:00:56]} 26. Nd4 {[%clk 0:01:08]}  e5 {[%clk 0:00:56]} 27. Nb3 {[%clk 0:01:08]}  Qc7 {[%clk 0:00:56]} 28. Qxc7+ {[%clk 0:01:05]}  Kxc7 {[%clk 0:00:56]} 29. Rdf1 {[%clk 0:00:57]}  Bg4 {[%clk 0:00:54]} 30. R3f2 {[%clk 0:00:54]}  h3 {[%clk 0:00:42]} 31. gxh3 {[%clk 0:00:35]}  Bxh3 {[%clk 0:00:42]} 32. Rh1 {[%clk 0:00:35]}  Kb6 {[%clk 0:00:40]} 33. exd5 {[%clk 0:00:34]}  Rxd5 {[%clk 0:00:28]} 34. Bf5 {[%clk 0:00:34]}  Rh8 {[%clk 0:00:26]} 35. Bxh3 {[%clk 0:00:31]}  Rxh3 {[%clk 0:00:26]} 36. Rg1 {[%clk 0:00:30]}  Rdd3 {[%clk 0:00:21]} 37. Kc2 {[%clk 0:00:29]}  Rdf3 {[%clk 0:00:20]} 38. Rxf3 {[%clk 0:00:29]}  Rxf3 {[%clk 0:00:20]} 39. Rg2 {[%clk 0:00:30]}  Rh3 {[%clk 0:00:20]} 40. Nd2 {[%clk 0:00:29]}  Bxd2 {[%clk 0:00:15]} 41. Rxd2 {[%clk 0:00:29]}  Kc6 {[%clk 0:00:10]} 42. Rf2 {[%clk 0:00:28]}  Rh6 {[%clk 0:00:11]} 43. Kd3 {[%clk 0:00:27]}  Kd5 {[%clk 0:00:11]} 44. b3 {[%clk 0:00:27]}  Rh3+ {[%clk 0:00:11]} 45. Kc2 {[%clk 0:00:28]}  Ke6 {[%clk 0:00:12]} 46. a4 {[%clk 0:00:27]}  bxa4 {[%clk 0:00:12]} 47. bxa4 {[%clk 0:00:27]}  e4 {[%clk 0:00:12]} 48. c4 {[%clk 0:00:27]}  Ke5 {[%clk 0:00:10]} 49. c5 {[%clk 0:00:27]}  f5 {[%clk 0:00:09]} 50. c6 {[%clk 0:00:27]}  Rh6 {[%clk 0:00:09]} 0-1


[Site "https://www.chess.com"]

[Event "Titled Tuesday Blitz July 26 Early 2022"]
[White "Vlassov, Nikolai"]
[Black "Vagman, Roy"]
[WhiteFideId "4103360"]
[BlackFideId "2828995"]
[WhiteElo "2324"]
[BlackElo "1956"]
[Result "1-0"]
[Round "07"]
[TimeControl "180+1"]
[Date "2022.07.27"]
[WhiteClock "0:00:14"]
[BlackClock "0:00:03"]

1. e4 {[%clk 0:03:00]}  e5 {[%clk 0:02:59]} 2. Bc4 {[%clk 0:03:00]}  Nf6 {[%clk 0:02:59]} 3. d3 {[%clk 0:03:00]}  Nc6 {[%clk 0:03:00]} 4. Nf3 {[%clk 0:03:00]}  Bc5 {[%clk 0:02:59]} 5. Bg5 {[%clk 0:02:59]}  h6 {[%clk 0:02:59]} 6. Bh4 {[%clk 0:03:00]}  g5 {[%clk 0:02:59]} 7. Bg3 {[%clk 0:03:00]}  d6 {[%clk 0:03:00]} 8. Nfd2 {[%clk 0:02:57]}  Bg4 {[%clk 0:03:00]} 9. f3 {[%clk 0:02:57]}  Be6 {[%clk 0:03:00]} 10. Nc3 {[%clk 0:02:55]}  Nh5 {[%clk 0:02:58]} 11. Nd5 {[%clk 0:02:50]}  Nf4 {[%clk 0:02:57]} 12. Nxf4 {[%clk 0:02:15]}  gxf4 {[%clk 0:02:58]} 13. Bf2 {[%clk 0:02:16]}  Qg5 {[%clk 0:02:47]} 14. g3 {[%clk 0:02:01]}  O-O-O {[%clk 0:02:37]} 15. c3 {[%clk 0:01:52]}  Rhg8 {[%clk 0:02:19]} 16. Rg1 {[%clk 0:01:48]}  Qh5 {[%clk 0:02:14]} 17. Qe2 {[%clk 0:01:29]}  Qxh2 {[%clk 0:02:07]} 18. Bxe6+ {[%clk 0:01:19]}  fxe6 {[%clk 0:02:06]} 19. Bxc5 {[%clk 0:01:20]}  Qxe2+ {[%clk 0:02:05]} 20. Kxe2 {[%clk 0:01:20]}  dxc5 {[%clk 0:02:06]} 21. g4 {[%clk 0:01:15]}  Rd7 {[%clk 0:01:58]} 22. Nb3 {[%clk 0:01:08]}  b6 {[%clk 0:01:54]} 23. Rh1 {[%clk 0:01:07]}  Rg6 {[%clk 0:01:25]} 24. Rh5 {[%clk 0:01:06]}  Rf7 {[%clk 0:01:23]} 25. Rah1 {[%clk 0:01:05]}  Rff6 {[%clk 0:01:24]} 26. Nd2 {[%clk 0:01:04]}  b5 {[%clk 0:01:18]} 27. Nb3 {[%clk 0:01:03]}  c4 {[%clk 0:01:11]} 28. dxc4 {[%clk 0:01:03]}  bxc4 {[%clk 0:01:09]} 29. Nd2 {[%clk 0:01:03]}  Kd7 {[%clk 0:00:37]} 30. Nxc4 {[%clk 0:01:03]}  Rg5 {[%clk 0:00:35]} 31. Rxh6 {[%clk 0:01:01]}  Rxh6 {[%clk 0:00:27]} 32. Rxh6 {[%clk 0:01:01]}  Rg7 {[%clk 0:00:27]} 33. Rh5 {[%clk 0:01:00]}  Ke7 {[%clk 0:00:25]} 34. b4 {[%clk 0:00:59]}  a6 {[%clk 0:00:24]} 35. a4 {[%clk 0:00:59]}  Kf6 {[%clk 0:00:15]} 36. Rh6+ {[%clk 0:00:53]}  Ke7 {[%clk 0:00:14]} 37. b5 {[%clk 0:00:51]}  axb5 {[%clk 0:00:15]} 38. axb5 {[%clk 0:00:51]}  Na7 {[%clk 0:00:15]} 39. Nxe5 {[%clk 0:00:51]}  Nxb5 {[%clk 0:00:14]} 40. Ng6+ {[%clk 0:00:51]}  Kf7 {[%clk 0:00:12]} 41. Nxf4 {[%clk 0:00:50]}  Nxc3+ {[%clk 0:00:12]} 42. Kd3 {[%clk 0:00:50]}  Nb5 {[%clk 0:00:09]} 43. Nxe6 {[%clk 0:00:45]}  Rg8 {[%clk 0:00:10]} 44. Ke3 {[%clk 0:00:38]}  Ra8 {[%clk 0:00:10]} 45. Nxc7 {[%clk 0:00:36]}  Ra3+ {[%clk 0:00:10]} 46. Kf4 {[%clk 0:00:35]}  Nd4 {[%clk 0:00:10]} 47. Rh3 {[%clk 0:00:27]}  Ne2+ {[%clk 0:00:07]} 48. Kg5 {[%clk 0:00:24]}  Ng1 {[%clk 0:00:07]} 49. Rh7+ {[%clk 0:00:20]}  Kg8 {[%clk 0:00:07]} 50. Rd7 {[%clk 0:00:18]}  Nxf3+ {[%clk 0:00:07]} 51. Kf4 {[%clk 0:00:18]}  Nh4 {[%clk 0:00:05]} 52. Nd5 {[%clk 0:00:17]}  Rf3+ {[%clk 0:00:04]} 53. Kg5 {[%clk 0:00:17]}  Rh3 {[%clk 0:00:05]} 54. Nf6+ {[%clk 0:00:17]}  Kf8 {[%clk 0:00:04]} 55. e5 {[%clk 0:00:17]}  Nf3+ {[%clk 0:00:04]} 56. Kf4 {[%clk 0:00:16]}  Nh4 {[%clk 0:00:04]} 57. e6 {[%clk 0:00:16]}  Rf3+ {[%clk 0:00:04]} 58. Kg5 {[%clk 0:00:16]}  Rxf6 {[%clk 0:00:02]} 59. Kxf6 {[%clk 0:00:15]}  Ke8 {[%clk 0:00:02]} 60. Rh7 {[%clk 0:00:14]}  Ng2 {[%clk 0:00:03]} 61. Rh8# {[%clk 0:00:14]} 1-0


[Site "https://www.chess.com"]